Cogmind - Beta 15 @@@ ROGUE MODE // 2025.10.13 @ 20:41:31 Player: Runagate Result: Self-destructed Performance ------------- Evolutions (2) 1000 Regions Visited (3) 600 Robots Destroyed (66) 330 Value Destroyed (1561) 1561 Prototype IDs (2) 40 Alien Tech Used (0) 0 Bonus (0) 0 TOTAL SCORE: 3531 Bonus ------- None Cogmind --------- Core Integrity 471/550 Matter 300/300 Energy 24/265 System Corruption 0% Temperature Cool (15) Movement Walking (190) Ox1 Location -8/Materials Parts ------- > --- POWER (1) -------- Improved Ion Engine > --- PROPULSION (4) --- Aluminum Leg Aluminum Leg > --- UTILITY (3) ------ Heat Sink Cooling System Large Storage Unit > --- WEAPON (3) ------- Particle Gun Precision Beam Rifle Precision Beam Rifle > --- INVENTORY (15) --- Improved Ion Engine Aluminum Leg Aluminum Leg Aluminum Leg Heat Sink Heat Sink Seismic Detector Beam Rifle Beam Rifle Particle Gun Particle Gun Particle Gun Particle Gun Beam Cannon Beam Cannon Peak State ------------ > --- POWER ------------ Improved Ion Engine > --- PROPULSION ------- Aluminum Leg Aluminum Leg Aluminum Leg Carbon-fiber Leg > --- UTILITY ---------- Heat Sink Cooling System Large Storage Unit > --- WEAPON ----------- Particle Gun Precision Beam Rifle Precision Beam Rifle > --- INVENTORY -------- Improved Ion Engine Aluminum Leg Aluminum Leg Aluminum Leg Heat Sink Heat Sink Seismic Detector Beam Rifle Beam Rifle Particle Gun Particle Gun Particle Gun Particle Gun Beam Cannon Beam Cannon [Rating: 24] Favorites ----------- Power Ion Engine Engine Ion Engine Power Core Light Nuclear Core Propulsion Aluminum Leg Leg Aluminum Leg Utility Seismic Detector Device Seismic Detector Storage Medium Storage Unit Weapon Assault Rifle Energy Gun Particle Gun Energy Cannon Beam Cannon Ballistic Gun Assault Rifle Build | -11 -10 -9 -8 ------- Run | Yrd Mat Mat Mat Slots Evolved 4 | . . 2 2 Power . | . . . . Propulsion 2 | . . 2 . Utility 1 | . . . 1 Weapon 1 | . . . 1 Parts Attached 49 | 11 9 21 8 Power 7 | 1 2 3 1 Engine 6 | 1 2 2 1 Core 1 | . . 1 . Reactor . | . . . . Propulsion 17 | 2 4 10 1 Treads . | . . . . Leg 17 | 2 4 10 1 Wheel . | . . . . Hover . | . . . . Flight . | . . . . Utility 11 | 5 1 3 2 Device 8 | 4 . 2 2 Storage 3 | 1 1 1 . Processor . | . . . . Hackware . | . . . . Protection . | . . . . Artifact . | . . . . Weapon 14 | 3 2 5 4 Energy Gun 6 | . . 2 4 Energy Cannon 1 | . 1 . . Ballistic Gun 7 | 3 1 3 . Ballistic Cannon . | . . . . Launcher . | . . . . Special Weapon . | . . . . Impact Weapon . | . . . . Slashing Weapon . | . . . . Piercing Weapon . | . . . . Special Melee Weapon . | . . . . Unidentified Prototypes 2 | . . 1 1 Parts Lost 5 | . 1 3 1 Power 1 | . 1 . . Propulsion 3 | . . 2 1 Utility 1 | . . 1 . Weapon . | . . . . Highest Loss Streak 1 | . 1 1 1 To Critical Strikes . | . . . . Average Backups 9 | 2 8 10 14 Power 1 | . 1 1 1 Propulsion . | . 1 . 2 Utility 2 | 1 3 3 2 Weapon 4 | . 3 6 7 Tool/Special . | . . . . Unused Backups 15 | . 1 5 9 Power 1 | . . 1 . Propulsion 1 | . 1 . . Utility 3 | . . 1 2 Weapon 10 | . . 3 7 Tool/Special . | . . . . Average Slot Usage (%) 96 | . 95 96 98 Engine 8 | . 10 7 2 Core 1 | . . 3 6 Leg 33 | . 28 40 35 Device 12 | . 14 10 17 Storage 12 | . 14 11 9 Energy Gun 3 | . . 4 27 Energy Cannon 8 | . 9 7 . Ballistic Gun 13 | . 18 10 . Peak Build Rating 24 | 7 8 16 24 Average Rating 10 | 6 7 13 21 On Entrance 7 | . 7 8 15 Naked Turns . | . . . . Heaviest Build 39 | 13 21 32 39 Greatest Support 45 | 20 20 43 45 Greatest Overweight (x) 1 | 1 1 1 . Average Overweight (x) . | . . . . Largest Inventory Capacity 15 | 8 10 15 15 Average Capacity 10 | 7 9 11 15 Most Carried 15 | 5 10 14 15 Average Carried 9 | 2 8 10 14 Final Capacity 15 | 8 10 15 15 Final Carried 15 | 3 10 14 15 Class Distribution -------------------- 65% | Mutant 26% | Scavenger-Mutant 7% | Scavenger-Gunner Dominant Class ---------------- Mutant | -10/Materials Scavenger-Mutant | -9/Materials Scavenger-Gunner | -8/Materials Resources | -11 -10 -9 -8 ----------- Run | Yrd Mat Mat Mat Matter Collected 1436 | 454 370 505 107 Remotely . | . . . . Salvage Created 2353 | 264 562 1115 412 Parts 138 | 27 29 69 13 Haulers Intercepted 3 | . 1 1 1 Recyclers Shooed 5 | . 3 2 . Parts Field Recycled . | . . . . Retrieved Matter . | . . . . Parts Self-Destructed . | . . . . Prevented . | . . . . Kills | -11 -10 -9 -8 ------- Run | Yrd Mat Mat Mat Combat Hostiles Destroyed 37 | . 10 20 7 Guns 27 | . 9 12 6 Cannons 9 | . 1 8 . Classes Destroyed 11 | 3 4 3 1 Worker 7 | 2 3 1 1 Tunneler 9 | 9 . . . Hauler 3 | . 1 1 1 Recycler 5 | 1 1 2 1 Operator 2 | . . 2 . Watcher 3 | . 1 2 . Swarmer 6 | . 3 3 . Grunt 19 | . 7 8 4 Brawler 1 | . . . 1 Duelist 2 | . . 1 1 Sentry 9 | . . 8 1 Best Kill Streak 4 | 4 3 4 4 Combat Bots Only 3 | . 2 3 2 Max Kills in Single Turn 2 | 1 1 2 1 Gunslinging . | . . . . Exploded . | . . . . Melee . | . . . . Uniques/NPCs Destroyed . | . . . . Combat | -11 -10 -9 -8 -------- Run | Yrd Mat Mat Mat Hostile Shots Fired 203 | . 45 117 41 Missed 51 | . 7 33 11 Hits 152 | . 38 84 30 Melee 4 | . . 1 3 Projectile 148 | . 38 83 27 Critical Strikes 7 | . 1 5 1 Damage Taken 2103 | . 457 1141 505 Core 412 | . 104 229 79 Absorbed by Shields . | . . . . Regen/Repaired (Parts) 82 | . . 82 . Core Remaining (%) 66 | 100 58 42 . Volleys Fired 191 | 24 53 85 29 Largest 3 | 2 2 2 3 Hottest 195 | 40 80 130 195 Shots Fired 410 | 48 106 170 86 Gun 343 | 48 93 116 86 Cannon 67 | . 13 54 . Launcher . | . . . . Special . | . . . . Kinetic 227 | 48 93 86 . Thermal 183 | . 13 84 86 Explosive . | . . . . Electromagnetic . | . . . . Robot Hit Streak 20 | 4 19 20 15 Robot Miss Streak 6 | 6 3 5 3 Penetration Max . | . . . . Secondary Targets 3 | . 2 1 . Max Gunslinging Chain 1 | . 1 1 . Shots Hit Robots 259 | 24 72 113 50 Core Hits 101 | 13 26 43 19 Critical Kills 1 | . 1 . . Critical Parts Destroyed 2 | . 2 . . Critical Strikes 7 | . 3 2 2 Burn 4 | . . 2 2 Destroy 3 | . 3 . . Melee Attacks . | . . . . Impact . | . . . . Slashing . | . . . . Piercing . | . . . . Sneak Attacks . | . . . . Combat Hostiles . | . . . . Follow-up Attacks . | . . . . Damage Inflicted 4344 | 311 979 1831 1223 Guns 3223 | 311 857 1209 846 Cannons 734 | . 122 612 . Explosions 340 | . . . 340 Melee . | . . . . Ramming 47 | . . 10 37 Kinetic 2091 | 311 857 923 . Thermal 2206 | . 122 898 1186 Explosive . | . . . . Electromagnetic . | . . . . Impact . | . . . . Slashing . | . . . . Piercing . | . . . . Highest Corruption . | . . . . Average Corruption . | . . . . Corruption Purged . | . . . . Corruption Blocked . | . . . . Overload Shots . | . . . . Overflow Damage 99 | . . 9 90 Projectiles 9 | . . 9 . Explosions 90 | . . . 90 Melee . | . . . . Knockbacks 1 | . . 1 . Impact 1 | . . 1 . Kinetic . | . . . . Secondary . | . . . . Self-Inflicted Damage . | . . . . Shots . | . . . . Rammed . | . . . . Targets Rammed 6 | . . 3 3 Kicked 6 | . . 3 3 Crushed . | . . . . Highest Temperature 252 | . 60 252 117 Average Temperature 40 | . 13 48 39 Received Heat Transfer 936 | . 246 474 216 Siege Activations . | . . . . Martial Activations . | . . . . Shielding Activations . | . . . . Robots Disrupted . | . . . . Combat Hostiles . | . . . . Robots Corrupted . | . . . . Combat Hostiles . | . . . . Parts Fried . | . . . . Impact Corruptions . | . . . . Robots Melted 1 | . . . 1 Combat Hostiles 1 | . . . 1 Parts Melted 13 | . . 9 4 Heat Transferred 4677 | . 259 2109 2309 Parts Sabotaged . | . . . . Parts Stolen . | . . . . Parts Stripped . | . . . . Power Chain Reactions . | . . . . Alert | -11 -10 -9 -8 ------- Run | Yrd Mat Mat Mat Maximum Alert Level 1 | . . . 1 Low Security (%) 99 | 100 100 100 98 Level 1 . | . . . 1 Level 2 . | . . . . Level 3 . | . . . . Level 4 . | . . . . Level 5 . | . . . . High Security . | . . . . Max Security . | . . . . Peak Influence 202 | 15 101 154 202 Initial 54 | . . . 54 Average 31 | 2 17 45 77 Influence Increases 1241 | 60 311 592 278 Destroy 0b10 Robot/C 740 | . 200 400 140 Destroy 0b10 Robot/NC 145 | 60 30 40 15 Destroy Leader 222 | . 54 126 42 Successful Hack 34 | . 26 8 . Disable Machine 45 | . . 15 30 Destroy Structure 25 | . 1 3 21 Lose Combat Pursuer 30 | . . . 30 Influence Decreases 1049 | 60 311 462 216 Entered New Map 76 | . . . 76 Time Decay 941 | 60 301 450 130 Lost Part 32 | . 10 12 10 Squads Dispatched 4 | . 2 1 1 Investigation . | . . . . Extermination . | . . . . Reinforcement 4 | . 2 1 1 Assault . | . . . . Garrison . | . . . . Intercept . | . . . . Searches Triggered . | . . . . Construction Impeded . | . . . . Haulers Reinforced . | . . . . Active Scanning Responses . | . . . . Cargo Convoy Interrupts . | . . . . Stealth | -11 -10 -9 -8 --------- Run | Yrd Mat Mat Mat Distress Signals 3 | . 1 1 1 Communications Jammed . | . . . . Distress Signals . | . . . . Times Spotted 60 | . 19 30 11 Peak Tracking Total 5 | . 4 5 3 Tactical Retreats 2 | . . . 2 Traps | -11 -10 -9 -8 ------- Run | Yrd Mat Mat Mat Traps Triggered . | . . . . Indirectly . | . . . . Trap Hack Attempts . | . . . . Triggered . | . . . . Disarmed . | . . . . Reprogrammed . | . . . . Reused . | . . . . Traps Extracted . | . . . . Installed . | . . . . Triggered . | . . . . Machines | -11 -10 -9 -8 ---------- Run | Yrd Mat Mat Mat Machines Disabled 3 | . . 1 2 Max in Single Turn 2 | . . 1 2 Machines Repaired . | . . . . Machines Dismantled . | . . . . Machines Sabotaged . | . . . . Overloaded Fab Kills . | . . . . Hacking | -11 -10 -9 -8 --------- Run | Yrd Mat Mat Mat Machines Accessed 15 | . 6 8 1 Terminals 14 | . 6 7 1 Fabricators . | . . . . Repair Stations 1 | . . 1 . Recycling Units . | . . . . Scanalyzers . | . . . . Garrison Access . | . . . . Total Hacks 25 | . 11 11 3 Successful 15 | . 7 8 . Failed 10 | . 4 3 3 Catastrophic . | . . . . Database Lockouts . | . . . . Manual 23 | . 11 9 3 Terminals 23 | . 11 9 3 Fabricators . | . . . . Repair Stations 2 | . . 2 . Recycling Units . | . . . . Scanalyzers . | . . . . Garrison Access . | . . . . Terminal Hacks . | . . . . Fabricator Hacks . | . . . . Repair Station Hacks 2 | . . 2 . Scan Component 1 | . . 1 . Repair 1 | . . 1 . Recycling Unit Hacks . | . . . . Scanalyzer . | . . . . Garrison Access Hacks . | . . . . Unauthorized Hacks 12 | . 6 6 . Terminals 12 | . 6 6 . Skim 12 | . 6 6 . Fabricators . | . . . . Repair Stations . | . . . . Recycling Units . | . . . . Scanalyzers . | . . . . Garrison Access . | . . . . Data Cores Recovered . | . . . . Used . | . . . . Hacking Detections 6 | . 3 2 1 Full Trace Events 1 | . 1 . . Feedback Events . | . . . . Feedback Blocked . | . . . . Robot Schematics Acquired . | . . . . Robots Built . | . . . . Authchips . | . . . . Time . | . . . . Total Robot Build Rating . | . . . . Part Schematics Acquired . | . . . . Parts Built . | . . . . Authchips . | . . . . Time . | . . . . Total Part Build Rating . | . . . . Parts Repaired 1 | . . 1 . Time 26 | . . 26 . Parts Recycled . | . . . . Recycled Matter . | . . . . Retrieved Matter . | . . . . Retrieved Components . | . . . . Parts Scanalyzed . | . . . . Part Schematics Acquired . | . . . . Parts Damaged . | . . . . Bothacking | -11 -10 -9 -8 ------------ Run | Yrd Mat Mat Mat Used RIF Installer . | . . . . Robots Hacked . | . . . . Non-combat . | . . . . Combat . | . . . . Robot Hacks Applied . | . . . . Relay Couplers Released . | . . . . Fabnet Peak Effective % . | . . . . Robots Rewired . | . . . . Allies Hacked . | . . . . Hacks Repelled . | . . . . Allies | -11 -10 -9 -8 -------- Run | Yrd Mat Mat Mat Total Allies . | . . . . Largest Group . | . . . . Highest-Rated Group . | . . . . Highest-Rated Ally . | . . . . Total Orders . | . . . . Ally Attacks . | . . . . Total Damage . | . . . . Kills . | . . . . Allies Corrupted . | . . . . Allies Melted . | . . . . Intel | -11 -10 -9 -8 ------- Run | Yrd Mat Mat Mat Active Infowar (turns) 2365 | 214 1787 364 . Seismic 2365 | 214 1787 364 . Robot Analysis Total . | . . . . Derelict Logs Recovered . | . . . . Drone Launches . | . . . . Drone Recoveries . | . . . . Exploration | -11 -10 -9 -8 ------------- Run | Yrd Mat Mat Mat Turns Passed 3859 | 268 1787 1527 277 Spaces Moved 1877 | 106 784 872 115 Core 6 | 6 . . . Treads . | . . . . Legs 1871 | 100 784 872 115 Wheels . | . . . . Hover . | . . . . Flight . | . . . . Fastest Speed 50 | 50 120 120 120 Average Speed 128 | 116 138 122 120 Slowest Speed 190 | 120 190 190 120 Overloaded Moves . | . . . . Propulsion Burnouts . | . . . . Robots Hopped . | . . . . Potential Cave-ins . | . . . . Cave-ins Triggered . | . . . . Exploration Rate (%) 47 | 4 98 72 15 Regions Visited 3 Branch Regions . Pre-discovered Areas 3 | . 1 2 . Known Exits Taken 1 | . . 1 . Unknown Exits Taken 2 | 1 1 . . Scrap Searched . | . . . . Spaces Dug . | . . . . Terrain Destroyed 20 | . . . 20 Melee . | . . . . Projectile . | . . . . AOE 20 | . . . 20 Terrain Rammed . | . . . . Walls Destroyed . | . . . . Machines Disabled . | . . . . Actions | -11 -10 -9 -8 --------- Run | Yrd Mat Mat Mat Total 2943 | 198 1382 1178 185 Wait 761 | 55 516 163 27 Move 1874 | 105 783 871 115 Hop . | . . . . Pick Up 26 | 1 11 14 . Fast Attach 12 | 7 1 4 . Attach 4 | . . 2 2 Detach . | . . . . Swap 38 | 4 9 17 8 Drop 31 | 2 9 19 1 Fire 191 | 24 53 85 29 Melee . | . . . . Ram . | . . . . Kick 6 | . . 3 3 Crush . | . . . . Escape Stasis . | . . . . Rewire . | . . . . Trap . | . . . . Miscellaneous . | . . . . Route ------- -11/Scrapyard -10/Materials (discovered 5 exits: *Mat x3 / [*Min] / [*Sub]) -9/Materials (discovered 4 exits: *Mat x3 / Min) -8/Materials (discovered 3 exits: Fac / *Sto x2) History --------- Turn | Location | Event 4 | -11/Scrapyard | Discovered new exit (range 16) 269 | -11/Scrapyard | Entered Materials 308 | -10/Materials | Build established: Mutant 422 | -10/Materials | Discovered new exit (range 10) 974 | -10/Materials | Discovered new exit (range 11) 1162 | -10/Materials | Discovered new exit (range 16) 1239 | -10/Materials | Discovered new exit (range 15) 1323 | -10/Materials | Discovered new exit (range 9) 1682 | -10/Materials | Loaded intel: 19 trap records 1751 | -10/Materials | Learned location of 3 exits from Materials 1810 | -10/Materials | Learned location of 1 exit from Recycling 1858 | -10/Materials | Learned Materials trap positions 1944 | -10/Materials | Learned location of Storage (-8) 2001 | -10/Materials | Learned location of 2 exits from Mines 2056 | -10/Materials | Entered another Materials area 2056 | -9/Materials | Evolved 2 slots: Propulsion x2 2057 | -9/Materials | Identified exit to Materials 2058 | -9/Materials | Loaded intel: 11 trap records 3072 | -9/Materials | Identified exit to Mines 3207 | -9/Materials | Learned Storage stockpile data 3262 | -9/Materials | Learned Storage non-interactive machine intel 3307 | -9/Materials | Learned Storage garrison access intel 3404 | -9/Materials | Learned Storage security intel 3408 | -9/Materials | Core integrity fell below 50% 3427 | -9/Materials | Build established: Scavenger-Mutant 3449 | -9/Materials | Loaded intel: 53 non-interactive machine locations 3506 | -9/Materials | Learned location of 3 exits from Materials 3508 | -9/Materials | Repaired Aluminum Leg 3583 | -9/Materials | Entered another Materials area 3583 | -8/Materials | Evolved 2 slots: Utility x1, Weapon x1 3584 | -8/Materials | Identified exit to Storage 3584 | -8/Materials | Identified exit to Factory 3860 | -8/Materials | Self-destructed Last Messages --------------- Coupler. 03845_ Aluminum Leg severed. 03848_ Fusion Modulator explodes. 03848_ Destroyed Lgt. Nuclear Core. 03848_ Recycling Unit disabled. 03848_ Prototype Hover Unit tumbles out of recycling unit. 03848_ Destroyed Lgt. Nuclear Core. 03848_ R-06 Scavenger destroyed. 03848_ Prototype Hover Unit tumbles out of recycling unit. 03848_ Particle Gun tumbles out of recycling unit. 03848_ Beam Rifle tumbles out of recycling unit. 03848_ Destroyed Imp. Aluminum Leg. 03848_ Lgt. Nuclear Core tumbles out of recycling unit. 03854_ L-31 Rogue destroyed. 03858_ U-05 Engineer builds a Wall. 03859_ Carbon-fiber Leg destroyed. Map ----- +----------------------------------------------------+ | ?????????????????????????????????????????????????? | | ?????????????????????????????????????????????????? | | ??????????????????????????? ????????????????????? | | ??????????????????????????? ????????????????????? | | ??????????????????????????# ????????????????????? | | ???########???????????????# #???????????????????? | | ???#! ###########?????+ #???????????????????? | | #### """# #?????# #???????????????????? | | # """# #?????# #???????????????????? | | # """# """ """ #?????# #???????????????????? | | # """# """ """ #?????/ #???????????????????? | | + # """ """ #?????# #???????????????????? | | ######## #?????# #???????????????????? | | #??????# #?????# #???????????????????? | | ##?????# #????## ##??????#???????????? | | ##########+######????#! ##### #####???????? | | #??????# ??????? | | #??????# > ??????? | | #??????# % ### #??????????? | | ###+####### #??????## ##??????????????????? | | ##### #??# #???????# #????????#??????????? | | ????# ! """#??# #???????# #??????? #??????????? | | ????# T"#??# %######### #??????? #??????????? | | ????# """#??# % % #?????? #??????????? | | ????#! #??# #########+#####??? #??????????? | | ????# #??# #????# @ * " #?? #??????????? | | ????########??# #????# %=[[ ; #??????????? | | ??????????????# #????# g!g% ; #??????????? | | ??????????????# #????; !=! ; ##### #????? | | ??????????????+ #??? ; = ; #????? | | ??????????????# #?? ; ; #???? | | ??????????????# +?? ; ; """ ???????? | | ??????????????# ?? ; ; """ ???????? | | ??????????????# ? # ; """ ???????? | | ??????????????# #######;;;;;;;;# """ ???????? | | ??????????????# ????? # # ???????? | | ??????????????# ????? ? * #? ??????? | | ??????????????# ????? ? +? """ ?????? | | ??????????????? ????? ? """"" ??? """ #????? | | ??????????????????????? *? "???????? """? ?#????? | | ??????????????????????? ? ?????????? ""?????????? | | ????????????????????????????????????? ?????????? | | ?????????????????????????????????????? ?????????? | | ?????????????????????????????????????? ?????????? | | ???????????????????????????????????????#?????????? | | ?????????????????????????????????????????????????? | | ?????????????????????????????????????????????????? | | ?????????????????????????????????????????????????? | | ?????????????????????????????????????????????????? | | ?????????????????????????????????????????????????? | +----------------------------------------------------+ Best States ------------- Heat Dissipation 63 Energy Generation 14 Energy Capacity 265 Matter Stores 300 Matter Capacity 300 Sight Range 16 Terrain Scan Density 10 Evasion (%) 55 Item Schematics ----------------- None Robot Schematics ------------------ None Fabricated ------------ Nothing Repaired ---------- Aluminum Leg | 8% | -9/Materials Alien Tech Used ----------------- None Achievements -------------- None Challenges ------------ None Game ------ Seed RocketHypervelocityCapacitor Manual? 0 Play Time 00:17:24 Cumulative 162.7 hours Start 2025.10.13 @ 20:19:57 End 2025.10.13 @ 20:41:31 Sessions 3 Manual Loads 0 Difficulty Rogue Special Mode None Game No. 286 Rogue 284 Adventurer 0 Explorer 2 Win Type - Total 1 Types 1/0/0/0/0/0/0/0/0/0 Lore% 46 Gallery% 55 Achievement% 46 Wizard Run 0 Options --------- Layout 2 ASCII 0 Keyboard 1 Movement Arrows Keybinds 0 Fullscreen 1 Font 28/SmallcapsGlow Map View 50x49 Zoom Use 0% Tactical HUD 1 Map Filters NONE Filters NONE Steam 1 RUN: efa78e97-0f99-46e7-a05b-0f9205530555